{"text_format":"1","workbook":"xlsx","n_sheets":2,"sheets":["قاعدة البيانات","تقرير سعاد احمد سعيد"],"not_rendered":{"charts":0,"images":0,"macros":1,"external_links":0,"defined_names":0,"comments":0,"pivot_tables":0},"unopened":[],"bounds":{"document_bytes":16777216,"sheet_cells":100000,"rows_first":2000,"rows_last":500,"rows_between":2000,"halvings":0,"cell_chars":16384,"cell_head_chars":4096},"cells_cut":0,"cells_raw":0,"read":"whole","date_system":"1900"}

{"sheet":"قاعدة البيانات","index":0,"n_rows":45,"n_cols":9,"rows_kept":45,"cut":false,"hidden":false,"merged":[]}
["كود الموظف","اسم الموظف","نوع الإجازة","تاريخ البداية","تاريخ النهاية","مدة الإجازة (يوم)","رقم الاجازة","التذكرة","ملاحظات"]
[100,"محمد","إجازة طارئة",null,null,{"$f":"DATEDIF(D2, E2, \"d\")","v":0}]
[101,"احمد","إجازة سنوية",null,null,{"$f":"DATEDIF(D3, E3, \"d\")","v":0}]
[102,"عمار فوزي رجب","إجازة سنوية",null,null,0]
[103,"سعيد عبد العليم","إجازة طارئة",null,null,0]
[104,"فوزي مكي","إجازة سنوية",null,null,0]
[105,"احمد شكري","إجازة سنوية",null,null,0]
[106,"مازن حسين","إجازة سنوية",null,null,0]
[107,"سعاد احمد سعيد","إجازة حج",null,null,0,202115,"ذهاب وعودة"]
[108,"زينب عبد الحليم","إجازة حج",null,null,0,202116,"ذهاب وعودة"]
[null,null,null,null,null,{"$f":"DATEDIF(D11, E11, \"d\")","v":0}]
[null,null,null,null,null,0]
[null,null,null,null,null,0]
[null,null,null,null,null,0]
[null,null,null,null,null,0]
[null,null,null,null,null,0]
[null,null,null,null,null,0]
[null,null,null,null,null,0]
[null,null,null,null,null,0]
[null,null,null,null,null,0]
[null,null,null,null,null,0]
[null,null,null,null,null,0]
[null,null,null,null,null,0]
[null,null,null,null,null,0]
[null,null,null,null,null,0]
[null,null,null,null,null,0]
[null,null,null,null,null,0]
[null,null,null,null,null,0]
[null,null,null,null,null,0]
[null,null,null,null,null,0]
[null,null,null,null,null,0]
[null,null,null,null,null,0]
[null,null,null,null,null,0]
[null,null,null,null,null,0]
[null,null,null,null,null,0]
[null,null,null,null,null,0]
[null,null,null,null,null,0]
[null,null,null,null,null,0]
[null,null,null,null,null,0]
[null,null,null,null,null,0]
[null,null,null,null,null,0]
[null,null,null,null,null,0]
[null,null,null,null,null,0]
[null,null,null,null,null,0]
[null,null,null,null,null,0]

{"sheet":"تقرير سعاد احمد سعيد","index":1,"n_rows":4,"n_cols":9,"rows_kept":4,"cut":false,"hidden":false,"merged":[[0,1,1,4],[0,0,1,0],[0,6,1,6],[0,7,1,7]]}
["اسم الموظف","سعاد احمد سعيد",null,null,null,null,"التاريخ","2025-11-19"]
[]
["كود الموظف","اسم الموظف","نوع الإجازة","بداية الاجازة","نهاية الاجازة","المدة (يوم)","رقم الاجازة","التذكرة","ملاحظات"]
[2348385937,"سعاد احمد سعيد","إجازة حج"]